[Event "*** Titled Tuesday Blitz"]
[Site "Chess.com"]
[Date "2020.05.05"]
[Round "6"]
[White "SamuelGhimpu2003"]
[Black "BilodeauA"]
[Result "0-1"]
[WhiteElo "2681"]
[BlackElo "2903"]
[TimeControl "180+1"]
[EndTime "11:03:59 PDT"]
[Termination "BilodeauA won by resignation"]

1. Nf3 {[%clk 0:03:00.9]} 1... d5 {[%clk 0:02:58.7]} 2. b3 {[%clk 0:02:57.9]}
2... c5 {[%clk 0:02:55.4]} 3. Bb2 {[%clk 0:02:58.8]} 3... f6 {[%clk 0:02:53.7]}
4. d3 {[%clk 0:02:49.2]} 4... e5 {[%clk 0:02:53.1]} 5. e4 {[%clk 0:02:49]} 5...
dxe4 {[%clk 0:02:48.8]} 6. dxe4 {[%clk 0:02:49.9]} 6... Qxd1+ {[%clk 0:02:48.8]}
7. Kxd1 {[%clk 0:02:50.8]} 7... Nc6 {[%clk 0:02:49.5]} 8. Bc4 {[%clk 0:02:46.9]}
8... Nh6 {[%clk 0:02:48.2]} 9. Ke2 {[%clk 0:02:42.7]} 9... Nf7 {[%clk
0:02:47.2]} 10. Bd5 {[%clk 0:02:35.3]} 10... Nb4 {[%clk 0:02:46.5]} 11. c4
{[%clk 0:02:14.1]} 11... Nxd5 {[%clk 0:02:36.6]} 12. cxd5 {[%clk 0:02:13]} 12...
b6 {[%clk 0:02:36.4]} 13. Nbd2 {[%clk 0:02:08.7]} 13... Nd6 {[%clk 0:02:37]} 14.
Nc4 {[%clk 0:02:06.5]} 14... Nxe4 {[%clk 0:02:35.9]} 15. Rhd1 {[%clk 0:02:06.6]}
15... Nd6 {[%clk 0:02:36.1]} 16. Nxd6+ {[%clk 0:02:01.2]} 16... Bxd6 {[%clk
0:02:36.1]} 17. Nd2 {[%clk 0:02:02]} 17... Ba6+ {[%clk 0:02:35.7]} 18. Nc4
{[%clk 0:02:00.7]} 18... Kd7 {[%clk 0:02:35.7]} 19. g4 {[%clk 0:01:53.8]} 19...
h5 {[%clk 0:02:34.2]} 20. h3 {[%clk 0:01:54.3]} 20... hxg4 {[%clk 0:02:34.2]}
21. hxg4 {[%clk 0:01:55.2]} 21... Rh4 {[%clk 0:02:33.7]} 22. Kf3 {[%clk
0:01:54.3]} 22... Rah8 {[%clk 0:02:31.2]} 23. Ne3 {[%clk 0:01:51.4]} 23... Rh3+
{[%clk 0:02:24.8]} 24. Ke4 {[%clk 0:01:51.2]} 24... g6 {[%clk 0:02:24.9]} 25.
Rg1 {[%clk 0:01:30.8]} 25... R8h4 {[%clk 0:02:19.2]} 0-1

[Event "*** Titled Tuesday Blitz"]
[Site "Chess.com"]
[Date "2020.05.05"]
[Round "6"]
[White "2165149677570"]
[Black "NotFischer"]
[Result "0-1"]
[WhiteElo "2296"]
[BlackElo "2164"]
[TimeControl "180+1"]
[EndTime "11:04:04 PDT"]
[Termination "NotFischer won by resignation"]

1. e4 {[%clk 0:03:00.9]} 1... c5 {[%clk 0:02:59.2]} 2. Nf3 {[%clk 0:03:01.4]}
2... e6 {[%clk 0:02:59.5]} 3. d4 {[%clk 0:03:01.4]} 3... cxd4 {[%clk 0:03:00.4]}
4. Nxd4 {[%clk 0:03:01.3]} 4... a6 {[%clk 0:03:00.7]} 5. Bd3 {[%clk 0:03:00.4]}
5... Nc6 {[%clk 0:03:00.9]} 6. Nxc6 {[%clk 0:02:59.2]} 6... bxc6 {[%clk
0:03:01.1]} 7. O-O {[%clk 0:02:59.6]} 7... d5 {[%clk 0:03:01.3]} 8. Nc3 {[%clk
0:02:57.1]} 8... Nf6 {[%clk 0:03:01.1]} 9. Qf3 {[%clk 0:02:56]} 9... Bb7 {[%clk
0:02:54.7]} 10. Qg3 {[%clk 0:02:53]} 10... h6 {[%clk 0:02:46.5]} 11. Bf4 {[%clk
0:02:45.1]} 11... Nh5 {[%clk 0:02:45.4]} 12. Qf3 {[%clk 0:02:41.4]} 12... Nxf4
{[%clk 0:02:45.5]} 13. Qxf4 {[%clk 0:02:42.3]} 13... Be7 {[%clk 0:02:42.2]} 14.
exd5 {[%clk 0:02:38.9]} 14... cxd5 {[%clk 0:02:42.2]} 15. Rab1 {[%clk
0:02:17.8]} 15... O-O {[%clk 0:02:40]} 16. b4 {[%clk 0:02:16.3]} 16... Bf6
{[%clk 0:02:39.2]} 17. Na4 {[%clk 0:02:08.8]} 17... Bc6 {[%clk 0:02:12.9]} 18.
Nc5 {[%clk 0:02:08.2]} 18... Bb5 {[%clk 0:02:13]} 19. c4 {[%clk 0:02:03.3]}
19... Bxc4 {[%clk 0:02:13.1]} 20. Bxc4 {[%clk 0:02:04.2]} 20... dxc4 {[%clk
0:02:14]} 21. Qxc4 {[%clk 0:02:05.1]} 21... Qc7 {[%clk 0:01:57.6]} 22. Rfd1
{[%clk 0:02:01.2]} 22... Rfc8 {[%clk 0:01:55]} 23. Qe4 {[%clk 0:01:55.9]} 23...
a5 {[%clk 0:01:45]} 24. Rd7 {[%clk 0:01:54.9]} 24... Qc6 {[%clk 0:01:45.2]} 25.
Rd8+ {[%clk 0:01:51.3]} 25... Bxd8 {[%clk 0:01:44]} 0-1

[Event "*** Titled Tuesday Blitz"]
[Site "Chess.com"]
[Date "2020.05.05"]
[Round "6"]
[White "Oligan22"]
[Black "korbul"]
[Result "1-0"]
[WhiteElo "2362"]
[BlackElo "2534"]
[TimeControl "180+1"]
[EndTime "11:04:07 PDT"]
[Termination "Oligan22 won by resignation"]

1. e4 {[%clk 0:03:00.9]} 1... c5 {[%clk 0:02:59.3]} 2. Nf3 {[%clk 0:03:00.4]}
2... e6 {[%clk 0:02:59.3]} 3. d4 {[%clk 0:03:00.7]} 3... cxd4 {[%clk 0:02:59.3]}
4. Nxd4 {[%clk 0:03:01.6]} 4... a6 {[%clk 0:02:58.8]} 5. Nc3 {[%clk 0:03:01.9]}
5... Qc7 {[%clk 0:02:58.7]} 6. Bd3 {[%clk 0:03:02.6]} 6... Nf6 {[%clk
0:02:58.4]} 7. Qe2 {[%clk 0:03:03.3]} 7... d6 {[%clk 0:02:58.5]} 8. f4 {[%clk
0:03:02.2]} 8... g6 {[%clk 0:02:58.3]} 9. O-O {[%clk 0:02:59.4]} 9... Nbd7
{[%clk 0:02:58]} 10. f5 {[%clk 0:02:40.1]} 10... gxf5 {[%clk 0:02:56.3]} 11.
exf5 {[%clk 0:02:40.1]} 11... e5 {[%clk 0:02:57.2]} 12. Ne6 {[%clk 0:02:35.5]}
12... fxe6 {[%clk 0:02:56.3]} 13. fxe6 {[%clk 0:02:35.6]} 13... Be7 {[%clk
0:02:52.1]} 14. exd7+ {[%clk 0:02:34.7]} 14... Bxd7 {[%clk 0:02:51.6]} 15. Rxf6
{[%clk 0:02:28.6]} 15... Bxf6 {[%clk 0:02:51]} 16. Nd5 {[%clk 0:02:27.6]} 16...
Qc5+ {[%clk 0:02:50.9]} 17. Ne3 {[%clk 0:01:53.6]} 17... O-O-O {[%clk
0:02:49.5]} 18. Kh1 {[%clk 0:01:51.7]} 18... Bc6 {[%clk 0:02:48.8]} 19. c3
{[%clk 0:01:44.1]} 19... Rhg8 {[%clk 0:02:48]} 20. Bd2 {[%clk 0:01:39.4]} 20...
Kb8 {[%clk 0:02:47.5]} 21. b4 {[%clk 0:01:38.8]} 21... Qb6 {[%clk 0:02:46.9]}
22. a4 {[%clk 0:01:33]} 22... Bg5 {[%clk 0:02:47.1]} 23. Rg1 {[%clk 0:01:09.8]}
23... Bf4 {[%clk 0:02:42.5]} 24. b5 {[%clk 0:01:07.7]} 24... axb5 {[%clk
0:02:38.3]} 25. axb5 {[%clk 0:01:08.6]} 25... Bd7 {[%clk 0:02:36.3]} 26. Nd5
{[%clk 0:01:08.1]} 26... Qxg1+ {[%clk 0:02:33.6]} 27. Kxg1 {[%clk 0:01:06.4]}
27... Rxg2+ {[%clk 0:02:33.2]} 28. Qxg2 {[%clk 0:00:57.4]} 1-0

[Event "*** Titled Tuesday Blitz"]
[Site "Chess.com"]
[Date "2020.05.05"]
[Round "6"]
[White "thedjoker98"]
[Black "DLR7"]
[Result "0-1"]
[WhiteElo "2497"]
[BlackElo "2725"]
[TimeControl "180+1"]
[EndTime "11:04:18 PDT"]
[Termination "DLR7 won by resignation"]

1. d4 {[%clk 0:03:00.9]} 1... Nf6 {[%clk 0:02:59.1]} 2. c4 {[%clk 0:03:01.4]}
2... e6 {[%clk 0:02:58.7]} 3. Nc3 {[%clk 0:03:01.9]} 3... Bb4 {[%clk 0:02:57.2]}
4. g3 {[%clk 0:03:02.4]} 4... d5 {[%clk 0:02:44.8]} 5. Nf3 {[%clk 0:03:01.7]}
5... O-O {[%clk 0:02:42.9]} 6. Bg2 {[%clk 0:03:01.7]} 6... dxc4 {[%clk
0:02:39.9]} 7. O-O {[%clk 0:03:01.1]} 7... Nc6 {[%clk 0:02:40.1]} 8. Qa4 {[%clk
0:02:54.8]} 8... Nd5 {[%clk 0:02:36.3]} 9. Qc2 {[%clk 0:02:54.4]} 9... Be7
{[%clk 0:02:32.5]} 10. e4 {[%clk 0:02:54.4]} 10... Ndb4 {[%clk 0:02:29.4]} 11.
Qe2 {[%clk 0:02:54.3]} 11... Nxd4 {[%clk 0:02:27.3]} 12. Nxd4 {[%clk 0:02:50]}
12... Qxd4 {[%clk 0:02:28.2]} 13. Rd1 {[%clk 0:02:50.5]} 13... Nd3 {[%clk
0:02:24.9]} 14. Be3 {[%clk 0:02:50.5]} 14... Qe5 {[%clk 0:02:22.7]} 15. f4
{[%clk 0:02:50.5]} 15... Qa5 {[%clk 0:02:20.7]} 16. Bd2 {[%clk 0:02:44.9]} 16...
Bc5+ {[%clk 0:02:16.9]} 17. Kf1 {[%clk 0:02:44.1]} 17... Nxb2 {[%clk 0:02:14.9]}
18. Nd5 {[%clk 0:02:30.5]} 18... Qa4 {[%clk 0:02:04.3]} 19. Nf6+ {[%clk
0:01:51.2]} 19... gxf6 {[%clk 0:02:00.8]} 20. Bc3 {[%clk 0:01:51.1]} 20... e5
{[%clk 0:01:53.6]} 21. Bxb2 {[%clk 0:01:51.3]} 21... Be6 {[%clk 0:01:43.8]} 22.
fxe5 {[%clk 0:01:51.2]} 22... c3 {[%clk 0:01:40.9]} 23. exf6 {[%clk 0:01:50.1]}
23... Bc4 {[%clk 0:01:27.7]} 24. Rd3 {[%clk 0:01:50.2]} 24... Bxd3 {[%clk
0:01:27.6]} 25. Qxd3 {[%clk 0:01:51.1]} 25... cxb2 {[%clk 0:01:25]} 26. Rb1
{[%clk 0:01:51.3]} 26... Qa6 {[%clk 0:01:24.5]} 0-1

[Event "*** Titled Tuesday Blitz"]
[Site "Chess.com"]
[Date "2020.05.05"]
[Round "6"]
[White "Poghosyan_Suren"]
[Black "BaMBoMaTTo"]
[Result "0-1"]
[WhiteElo "2477"]
[BlackElo "2671"]
[TimeControl "180+1"]
[EndTime "11:04:34 PDT"]
[Termination "BaMBoMaTTo won by resignation"]

1. Nf3 {[%clk 0:03:00.9]} 1... Nf6 {[%clk 0:02:58.7]} 2. c4 {[%clk 0:03:00.2]}
2... e6 {[%clk 0:02:58.7]} 3. g3 {[%clk 0:02:59.7]} 3... d5 {[%clk 0:02:59.6]}
4. Bg2 {[%clk 0:02:59.5]} 4... dxc4 {[%clk 0:03:00.1]} 5. Qa4+ {[%clk 0:02:59]}
5... Bd7 {[%clk 0:03:00.5]} 6. Qxc4 {[%clk 0:02:58.7]} 6... c5 {[%clk
0:03:01.4]} 7. Ne5 {[%clk 0:02:58.1]} 7... Nc6 {[%clk 0:02:55.5]} 8. Nxc6 {[%clk
0:02:55.8]} 8... Bxc6 {[%clk 0:02:54.6]} 9. Bxc6+ {[%clk 0:02:55.5]} 9... bxc6
{[%clk 0:02:55.5]} 10. O-O {[%clk 0:02:55.7]} 10... Be7 {[%clk 0:02:29.6]} 11.
d3 {[%clk 0:02:55.3]} 11... Qd5 {[%clk 0:02:25.8]} 12. Qc2 {[%clk 0:02:53.8]}
12... h5 {[%clk 0:01:53.6]} 13. Nc3 {[%clk 0:02:49.7]} 13... Qf5 {[%clk
0:01:53.7]} 14. h4 {[%clk 0:02:44.5]} 14... Qh3 {[%clk 0:01:51.1]} 15. Qa4
{[%clk 0:02:36.7]} 15... Rc8 {[%clk 0:01:38.8]} 16. Qa6 {[%clk 0:02:19.8]} 16...
O-O {[%clk 0:01:38.1]} 17. f3 {[%clk 0:02:01.9]} 17... Qxg3+ {[%clk 0:01:37.3]}
18. Kh1 {[%clk 0:02:02.8]} 18... Bd6 {[%clk 0:01:12.3]} 0-1

[Event "*** Titled Tuesday Blitz"]
[Site "Chess.com"]
[Date "2020.05.05"]
[Round "6"]
[White "rasmussvane"]
[Black "SCIM"]
[Result "1-0"]
[WhiteElo "2859"]
[BlackElo "2526"]
[TimeControl "180+1"]
[EndTime "11:04:36 PDT"]
[Termination "rasmussvane won by resignation"]

1. Nf3 {[%clk 0:03:00.9]} 1... Nf6 {[%clk 0:02:53.8]} 2. c4 {[%clk 0:03:00.2]}
2... c5 {[%clk 0:02:52]} 3. Nc3 {[%clk 0:03:00.1]} 3... d5 {[%clk 0:02:51.7]} 4.
cxd5 {[%clk 0:03:01]} 4... Nxd5 {[%clk 0:02:52]} 5. g3 {[%clk 0:03:01.2]} 5...
Nc6 {[%clk 0:02:44.5]} 6. Bg2 {[%clk 0:03:01.4]} 6... g6 {[%clk 0:02:44.2]} 7.
Ne4 {[%clk 0:02:56.2]} 7... b6 {[%clk 0:02:35.2]} 8. d4 {[%clk 0:02:55.5]} 8...
cxd4 {[%clk 0:02:17.2]} 9. Nxd4 {[%clk 0:02:56.4]} 9... Bb7 {[%clk 0:01:56.6]}
10. Nxc6 {[%clk 0:02:55.5]} 10... Bxc6 {[%clk 0:01:57.5]} 11. Qd4 {[%clk
0:02:55.3]} 11... f6 {[%clk 0:01:49]} 12. O-O {[%clk 0:02:54.3]} 12... Bg7
{[%clk 0:01:31.8]} 13. Rd1 {[%clk 0:02:36.7]} 13... O-O {[%clk 0:01:12.4]} 14.
Nc3 {[%clk 0:02:09.6]} 14... Nxc3 {[%clk 0:00:59.7]} 15. Qc4+ {[%clk 0:01:52.9]}
15... Nd5 {[%clk 0:00:51]} 16. Qxc6 {[%clk 0:01:47.4]} 1-0

[Event "*** Titled Tuesday Blitz"]
[Site "Chess.com"]
[Date "2020.05.05"]
[Round "6"]
[White "Saloni1299"]
[Black "yandry1996"]
[Result "1-0"]
[WhiteElo "2335"]
[BlackElo "2163"]
[TimeControl "180+1"]
[EndTime "11:04:36 PDT"]
[Termination "Saloni1299 won by resignation"]

1. e4 {[%clk 0:03:00.9]} 1... c5 {[%clk 0:02:59.3]} 2. Nf3 {[%clk 0:02:59.9]}
2... g6 {[%clk 0:02:59.4]} 3. d4 {[%clk 0:02:58.8]} 3... cxd4 {[%clk 0:03:00.3]}
4. Nxd4 {[%clk 0:02:59.1]} 4... Nc6 {[%clk 0:03:00.4]} 5. Nc3 {[%clk 0:02:59.1]}
5... Bg7 {[%clk 0:03:00.5]} 6. Be3 {[%clk 0:02:59.6]} 6... Nf6 {[%clk
0:03:00.4]} 7. Bc4 {[%clk 0:02:55.9]} 7... O-O {[%clk 0:02:59.8]} 8. Bb3 {[%clk
0:02:54.5]} 8... a5 {[%clk 0:02:59.5]} 9. a4 {[%clk 0:02:54]} 9... Nb4 {[%clk
0:02:45.1]} 10. O-O {[%clk 0:02:51.2]} 10... d5 {[%clk 0:02:33.3]} 11. e5 {[%clk
0:02:50.8]} 11... Ng4 {[%clk 0:02:27.8]} 12. Bf4 {[%clk 0:02:40.8]} 12... Nxe5
{[%clk 0:02:11.1]} 13. Ndb5 {[%clk 0:02:38.9]} 13... e6 {[%clk 0:01:16.2]} 14.
Re1 {[%clk 0:02:36.8]} 14... Nec6 {[%clk 0:01:08.3]} 15. Nc7 {[%clk 0:02:33.2]}
15... Bd7 {[%clk 0:01:05.3]} 16. Nxa8 {[%clk 0:02:29.3]} 16... Qxa8 {[%clk
0:01:06.2]} 17. Rb1 {[%clk 0:02:26.1]} 17... Qd8 {[%clk 0:01:00.7]} 18. Nb5
{[%clk 0:02:26.1]} 18... Qf6 {[%clk 0:00:58.2]} 19. Bg3 {[%clk 0:02:24.3]} 19...
Nd4 {[%clk 0:00:53.4]} 20. Nxd4 {[%clk 0:02:19.2]} 20... Qxd4 {[%clk 0:00:52.8]}
21. Qxd4 {[%clk 0:02:19.3]} 21... Bxd4 {[%clk 0:00:50.1]} 22. c3 {[%clk
0:02:17.2]} 22... Bxf2+ {[%clk 0:00:39.6]} 23. Bxf2 {[%clk 0:02:14.6]} 23... Nd3
{[%clk 0:00:39.5]} 24. Red1 {[%clk 0:02:13.1]} 1-0

[Event "*** Titled Tuesday Blitz"]
[Site "Chess.com"]
[Date "2020.05.05"]
[Round "6"]
[White "Konavets"]
[Black "Harry_Rakkel"]
[Result "1-0"]
[WhiteElo "2929"]
[BlackElo "2629"]
[TimeControl "180+1"]
[EndTime "11:04:40 PDT"]
[Termination "Konavets won on time"]

1. e4 {[%clk 0:02:59.6]} 1... c5 {[%clk 0:02:56.3]} 2. Nf3 {[%clk 0:02:59.9]}
2... e6 {[%clk 0:02:56.4]} 3. d4 {[%clk 0:03:00.1]} 3... cxd4 {[%clk 0:02:56.8]}
4. Nxd4 {[%clk 0:03:01]} 4... Nc6 {[%clk 0:02:56.7]} 5. Nc3 {[%clk 0:03:01.9]}
5... d6 {[%clk 0:02:56.9]} 6. f4 {[%clk 0:03:01.5]} 6... a6 {[%clk 0:02:55.8]}
7. Be3 {[%clk 0:03:01.6]} 7... Qc7 {[%clk 0:02:54]} 8. Qf3 {[%clk 0:03:01.7]}
8... Nxd4 {[%clk 0:02:53.7]} 9. Bxd4 {[%clk 0:03:02.6]} 9... Ne7 {[%clk
0:02:53.6]} 10. O-O-O {[%clk 0:03:01.5]} 10... Nc6 {[%clk 0:02:53.3]} 11. Bf2
{[%clk 0:03:02.2]} 11... b5 {[%clk 0:02:52.6]} 12. e5 {[%clk 0:03:02.3]} 12...
dxe5 {[%clk 0:02:39.9]} 13. f5 {[%clk 0:03:02.8]} 13... b4 {[%clk 0:02:32.7]}
14. fxe6 {[%clk 0:03:03.2]} 14... Bxe6 {[%clk 0:02:21.8]} 15. Nd5 {[%clk
0:03:03.1]} 15... Qb7 {[%clk 0:02:07.8]} 16. Bc4 {[%clk 0:03:03]} 16... Rb8
{[%clk 0:01:36.4]} 17. Bxa6 {[%clk 0:03:02.2]} 17... Qd7 {[%clk 0:01:16.5]} 18.
Nf6+ {[%clk 0:03:02]} 18... gxf6 {[%clk 0:01:16.4]} 19. Rxd7 {[%clk 0:03:02.9]}
19... Bxd7 {[%clk 0:01:16.3]} 20. Qxf6 {[%clk 0:03:01.9]} 20... Rg8 {[%clk
0:01:15.7]} 21. Rd1 {[%clk 0:03:02.6]} 21... Rg6 {[%clk 0:01:06.8]} 22. Qf3
{[%clk 0:03:02.8]} 22... Bg4 {[%clk 0:00:47]} 23. Qe4 {[%clk 0:03:02.6]} 23...
Bxd1 {[%clk 0:00:44.7]} 24. Kxd1 {[%clk 0:03:03.5]} 24... Rd8+ {[%clk
0:00:39.5]} 25. Ke1 {[%clk 0:03:03.8]} 25... Nd4 {[%clk 0:00:19.1]} 26. Bc4
{[%clk 0:03:04]} 26... Bg7 {[%clk 0:00:12.1]} 27. c3 {[%clk 0:03:04.4]} 27...
bxc3 {[%clk 0:00:10.8]} 28. bxc3 {[%clk 0:03:05.3]} 28... Ne6 {[%clk 0:00:09.2]}
29. Bb6 {[%clk 0:03:03.2]} 29... Rc8 {[%clk 0:00:05.2]} 30. Bb5+ {[%clk
0:03:02.9]} 30... Kf8 {[%clk 0:00:04.7]} 31. Qb7 {[%clk 0:02:59.6]} 1-0

[Event "*** Titled Tuesday Blitz"]
[Site "Chess.com"]
[Date "2020.05.05"]
[Round "6"]
[White "heartofatiger"]
[Black "aNaartjieZA"]
[Result "1-0"]
[WhiteElo "2442"]
[BlackElo "2586"]
[TimeControl "180+1"]
[EndTime "11:04:43 PDT"]
[Termination "heartofatiger won by resignation"]

1. d4 {[%clk 0:03:00.9]} 1... Nf6 {[%clk 0:02:58.8]} 2. c4 {[%clk 0:03:00.4]}
2... c5 {[%clk 0:02:58.8]} 3. d5 {[%clk 0:02:59.9]} 3... e5 {[%clk 0:02:59.1]}
4. Nc3 {[%clk 0:02:59.4]} 4... d6 {[%clk 0:02:59.5]} 5. e4 {[%clk 0:03:00]} 5...
Be7 {[%clk 0:02:59.9]} 6. g3 {[%clk 0:03:00.4]} 6... Nbd7 {[%clk 0:03:00.2]} 7.
h4 {[%clk 0:02:59.9]} 7... h5 {[%clk 0:02:59.7]} 8. Bh3 {[%clk 0:03:00.3]} 8...
Nf8 {[%clk 0:02:57.5]} 9. f3 {[%clk 0:03:00.3]} 9... a6 {[%clk 0:02:54]} 10. a4
{[%clk 0:02:59.7]} 10... Rb8 {[%clk 0:02:52.5]} 11. Be3 {[%clk 0:02:59.5]} 11...
Bxh3 {[%clk 0:02:49.8]} 12. Nxh3 {[%clk 0:02:59.2]} 12... N6d7 {[%clk 0:02:45]}
13. Nf2 {[%clk 0:02:58.2]} 13... g5 {[%clk 0:02:43.6]} 14. hxg5 {[%clk
0:02:55.2]} 14... Bxg5 {[%clk 0:02:43.6]} 15. f4 {[%clk 0:02:47.8]} 15... exf4
{[%clk 0:02:43.7]} 16. gxf4 {[%clk 0:02:47.5]} 16... Bh4 {[%clk 0:02:43.7]} 17.
Qf3 {[%clk 0:02:35.5]} 17... Ng6 {[%clk 0:02:41.3]} 18. O-O-O {[%clk 0:02:30.2]}
18... b5 {[%clk 0:02:27.6]} 19. axb5 {[%clk 0:02:29.4]} 19... Qa5 {[%clk
0:02:27]} 20. e5 {[%clk 0:02:17.8]} 20... dxe5 {[%clk 0:02:19.7]} 21. f5 {[%clk
0:02:15.2]} 21... Bxf2 {[%clk 0:02:16.8]} 22. fxg6 {[%clk 0:01:43.4]} 22...
Bxe3+ {[%clk 0:02:15.5]} 23. Qxe3 {[%clk 0:01:44]} 23... fxg6 {[%clk 0:02:14.7]}
24. Qg5 {[%clk 0:01:37.6]} 24... axb5 {[%clk 0:01:50.5]} 25. d6 {[%clk
0:01:17.2]} 1-0

[Event "*** Titled Tuesday Blitz"]
[Site "Chess.com"]
[Date "2020.05.05"]
[Round "6"]
[White "peixe64"]
[Black "mariangie523"]
[Result "1-0"]
[WhiteElo "2228"]
[BlackElo "2043"]
[TimeControl "180+1"]
[EndTime "11:04:43 PDT"]
[Termination "peixe64 won on time"]

1. d4 {[%clk 0:03:00.9]} 1... Nf6 {[%clk 0:02:50.6]} 2. c4 {[%clk 0:03:01]} 2...
c5 {[%clk 0:02:49.8]} 3. d5 {[%clk 0:02:58.9]} 3... b5 {[%clk 0:02:49.4]} 4.
cxb5 {[%clk 0:02:58.6]} 4... a6 {[%clk 0:02:49.3]} 5. b6 {[%clk 0:02:59.2]} 5...
d6 {[%clk 0:02:45.6]} 6. Nc3 {[%clk 0:02:59]} 6... g6 {[%clk 0:02:45]} 7. e4
{[%clk 0:02:58.1]} 7... Bg7 {[%clk 0:02:45.1]} 8. Nf3 {[%clk 0:02:58]} 8... O-O
{[%clk 0:02:45.2]} 9. Be2 {[%clk 0:02:55.3]} 9... Qxb6 {[%clk 0:02:40.2]} 10.
O-O {[%clk 0:02:53.5]} 10... Nbd7 {[%clk 0:02:40.1]} 11. Nd2 {[%clk 0:02:52.6]}
11... Qc7 {[%clk 0:02:26.4]} 12. Nc4 {[%clk 0:02:48.2]} 12... Nb6 {[%clk
0:02:20.5]} 13. Bf4 {[%clk 0:02:40.1]} 13... Nxc4 {[%clk 0:02:17.5]} 14. Bxc4
{[%clk 0:02:41]} 14... Nh5 {[%clk 0:02:13.2]} 15. Bd2 {[%clk 0:02:29.9]} 15...
f5 {[%clk 0:02:05.8]} 16. exf5 {[%clk 0:02:25]} 1-0

[Event "*** Titled Tuesday Blitz"]
[Site "Chess.com"]
[Date "2020.05.05"]
[Round "6"]
[White "julinha97"]
[Black "Gandrade2"]
[Result "1-0"]
[WhiteElo "2158"]
[BlackElo "2011"]
[TimeControl "180+1"]
[EndTime "11:04:53 PDT"]
[Termination "julinha97 won by resignation"]

1. e4 {[%clk 0:03:00.9]} 1... c5 {[%clk 0:02:59.9]} 2. Nf3 {[%clk 0:03:00.7]}
2... g6 {[%clk 0:03:00.1]} 3. d4 {[%clk 0:03:00.7]} 3... cxd4 {[%clk 0:03:01]}
4. Nxd4 {[%clk 0:03:01.4]} 4... Bg7 {[%clk 0:03:01.2]} 5. c4 {[%clk 0:03:02]}
5... Nc6 {[%clk 0:02:59.8]} 6. Be3 {[%clk 0:03:02.2]} 6... Qb6 {[%clk
0:03:00.2]} 7. Nb3 {[%clk 0:03:00.2]} 7... Qd8 {[%clk 0:03:00.3]} 8. Nc3 {[%clk
0:02:59.2]} 8... a5 {[%clk 0:03:00.8]} 9. a3 {[%clk 0:02:54.7]} 9... a4 {[%clk
0:02:52.4]} 10. Nd5 {[%clk 0:02:51.7]} 10... d6 {[%clk 0:02:33.6]} 11. Bb6
{[%clk 0:02:49]} 11... Qd7 {[%clk 0:02:32.6]} 12. Nc7+ {[%clk 0:02:45.4]} 12...
Kf8 {[%clk 0:02:26.1]} 13. Nxa8 {[%clk 0:02:45.2]} 13... axb3 {[%clk 0:02:23.1]}
14. Qxb3 {[%clk 0:02:43.6]} 14... Nf6 {[%clk 0:02:19.2]} 15. Bd3 {[%clk
0:02:42.8]} 15... Qg4 {[%clk 0:02:09.2]} 16. O-O {[%clk 0:02:30]} 16... Bh6
{[%clk 0:01:46.7]} 17. Nc7 {[%clk 0:02:17.8]} 17... Kg7 {[%clk 0:01:40.9]} 18.
Nd5 {[%clk 0:02:16.5]} 18... Be6 {[%clk 0:00:47.1]} 19. Nxf6 {[%clk 0:02:09.9]}
19... exf6 {[%clk 0:00:48]} 20. f3 {[%clk 0:01:55.6]} 20... Be3+ {[%clk
0:00:37]} 21. Bxe3 {[%clk 0:01:55.1]} 1-0

[Event "*** Titled Tuesday Blitz"]
[Site "Chess.com"]
[Date "2020.05.05"]
[Round "6"]
[White "Islamovqaasim"]
[Black "51616516516"]
[Result "0-1"]
[WhiteElo "2053"]
[BlackElo "2295"]
[TimeControl "180+1"]
[EndTime "11:04:55 PDT"]
[Termination "51616516516 won by checkmate"]

1. d4 {[%clk 0:03:00]} 1... Nf6 {[%clk 0:02:59.6]} 2. Nf3 {[%clk 0:03:00]} 2...
g6 {[%clk 0:02:59.1]} 3. c4 {[%clk 0:03:00.9]} 3... Bg7 {[%clk 0:02:58.4]} 4.
Nc3 {[%clk 0:03:01.8]} 4... d6 {[%clk 0:02:58.2]} 5. Bg5 {[%clk 0:03:02.3]} 5...
h6 {[%clk 0:02:56.8]} 6. Bh4 {[%clk 0:03:01.6]} 6... O-O {[%clk 0:02:56.1]} 7.
e3 {[%clk 0:03:01.4]} 7... c5 {[%clk 0:02:52.6]} 8. d5 {[%clk 0:03:01]} 8... a6
{[%clk 0:02:52.4]} 9. a4 {[%clk 0:03:00.4]} 9... Bf5 {[%clk 0:02:42.5]} 10. Bd3
{[%clk 0:02:59.8]} 10... Bxd3 {[%clk 0:02:39.9]} 11. Qxd3 {[%clk 0:03:00.7]}
11... Nbd7 {[%clk 0:02:34.8]} 12. O-O {[%clk 0:03:00.6]} 12... b6 {[%clk
0:02:25.1]} 13. Rfe1 {[%clk 0:02:59.4]} 13... g5 {[%clk 0:02:19.1]} 14. Bg3
{[%clk 0:02:57.4]} 14... Nh5 {[%clk 0:02:19.2]} 15. Nd2 {[%clk 0:02:48.7]} 15...
Nxg3 {[%clk 0:02:13.2]} 16. hxg3 {[%clk 0:02:49.6]} 16... Ne5 {[%clk 0:02:10.6]}
17. Qe2 {[%clk 0:02:45.5]} 17... f5 {[%clk 0:02:07.1]} 18. Nf3 {[%clk
0:02:29.9]} 18... Ng4 {[%clk 0:02:01.7]} 19. e4 {[%clk 0:02:20.9]} 19... f4
{[%clk 0:01:59.4]} 20. Nxg5 {[%clk 0:02:16]} 20... fxg3 {[%clk 0:01:46.9]} 21.
fxg3 {[%clk 0:02:01.4]} 21... Bd4+ {[%clk 0:01:37.9]} 22. Kh1 {[%clk 0:01:47.2]}
22... Nf2+ {[%clk 0:01:37.4]} 23. Kh2 {[%clk 0:01:46.6]} 23... hxg5 {[%clk
0:01:37.6]} 24. Qh5 {[%clk 0:01:35.1]} 24... Rf7 {[%clk 0:01:37.3]} 25. Qxg5+
{[%clk 0:01:26.3]} 25... Rg7 {[%clk 0:01:34.7]} 26. Qf5 {[%clk 0:01:24]} 26...
Rh7+ {[%clk 0:01:33.1]} 27. Kg1 {[%clk 0:01:22.1]} 27... Rh1# {[%clk 0:01:31.9]}
0-1